bitfinex/quotes_BTCUSD_20250320
["timestamp","ask_amount","ask_price","bid_price","bid_amount"]
[1742465319373,0.58409965,85979.0,85978.0,9.8e-07]
[1742465320746,0.5624314,85979.0,85978.0,9.8e-07]
[1742465327035,0.5634314,85979.0,85978.0,9.8e-07]
[1742465328345,0.5624314,85979.0,85978.0,9.8e-07]
[1742465328551,0.57697225,85979.0,85978.0,9.8e-07]
[1742465328761,0.56173647,85979.0,85978.0,9.8e-07]
[1742465331644,0.57997295,85979.0,85978.0,9.8e-07]
[1742465344451,0.5654321,85979.0,85978.0,9.8e-07]
[1742465348202,0.54719562,85979.0,85978.0,9.8e-07]
[1742465348892,0.54519562,85979.0,85978.0,9.8e-07]
[1742465349106,0.54419562,85979.0,85978.0,9.8e-07]
[1742465351071,0.56243205,85979.0,85978.0,9.8e-07]
[1742465351942,0.56343205,85979.0,85978.0,9.8e-07]
[1742465352191,0.5779729,85979.0,85978.0,9.8e-07]
[1742465353158,0.5789729,85979.0,85978.0,9.8e-07]
[1742465353620,0.5779729,85979.0,85978.0,9.8e-07]
[1742465353821,0.5799729,85979.0,85978.0,9.8e-07]
[1742465356455,0.56543205,85979.0,85978.0,9.8e-07]
[1742465357270,0.56343205,85979.0,85978.0,9.8e-07]
[1742465357471,0.56243205,85979.0,85978.0,9.8e-07]
[1742465357673,0.56343205,85979.0,85978.0,9.8e-07]
[1742465357853,0.5779729,85979.0,85978.0,9.8e-07]
[1742465358051,0.5769729,85979.0,85978.0,9.8e-07]
[1742465358250,0.5779729,85979.0,85978.0,9.8e-07]
[1742465358483,0.5789729,85979.0,85978.0,9.8e-07]
[1742465359814,0.5779729,85979.0,85978.0,9.8e-07]
[1742465360225,0.5789729,85979.0,85978.0,9.8e-07]
[1742465360650,0.5799729,85979.0,85978.0,9.8e-07]
[1742465361253,0.5789729,85979.0,85978.0,9.8e-07]
[1742465361438,0.5799729,85979.0,85978.0,9.8e-07]
[1742465367145,0.311631,85971.0,85970.0,0.001]
[1742465367387,0.779441,85971.0,85970.0,0.001]
[1742465367596,0.513657,85971.0,85970.0,0.001]
[1742465367959,0.45479,85971.0,85970.0,0.001]
[1742465368164,0.011631,85971.0,85970.0,0.001]
[1742465368398,0.011631,85971.0,85970.0,0.0819]
[1742465368597,0.012631,85971.0,85970.0,0.0819]
[1742465369682,0.014631,85971.0,85970.0,0.0819]
[1742465369887,0.03286801,85971.0,85970.0,0.001]
[1742465370090,0.02986801,85971.0,85970.0,0.001]
[1742465373095,0.81534201,85971.0,85970.0,0.001]
[1742465374136,0.81534201,85971.0,85970.0,0.0011695]
[1742465374334,0.81634201,85971.0,85970.0,0.0011695]
[1742465375182,0.81734201,85971.0,85970.0,0.0011695]
[1742465375516,0.8390333,85971.0,85970.0,0.0011695]
[1742465375721,0.8380333,85971.0,85970.0,0.0011695]
[1742465376139,0.8400333,85971.0,85970.0,0.0011695]
[1742465376371,0.83633714,85971.0,85970.0,0.0011695]
[1742465379531,0.8545754,85971.0,85970.0,0.0011695]
[1742465379733,0.89281836,85971.0,85970.0,5e-07]
[1742465379959,0.64173198,85971.0,85970.0,5e-07]
[1742465380221,0.52215695,85971.0,85970.0,5e-07]
[1742465380492,0.48784436,85971.0,85970.0,5e-07]
[1742465380737,0.43136314,85971.0,85970.0,5e-07]
[1742465380938,0.57004314,85971.0,85970.0,5e-07]
[1742465381175,0.544319,85953.0,85952.0,0.35793294]
[1742465381616,0.56601029,85953.0,85952.0,0.35793294]
[1742465382607,0.56605189,85953.0,85952.0,0.35793294]
[1742465383304,0.56705189,85953.0,85952.0,0.35793294]
[1742465383947,0.6199656,85953.0,85952.0,0.35793294]
[1742465385184,0.311634,85952.0,85951.0,0.001]
[1742465385356,0.311634,85952.0,85941.0,0.002]
[1742465385357,0.544344,85944.0,85941.0,0.002]
[1742465385540,0.927885,85944.0,85941.0,0.002]
[1742465385953,0.72684,85944.0,85941.0,0.002]
[1742465386178,0.7450829,85944.0,85941.0,0.002]
[1742465386394,0.5625869,85944.0,85941.0,0.002]
[1742465386603,1.0200699,85944.0,85941.0,0.002]
[1742465386802,0.94018837,85944.0,85941.0,0.002]
[1742465387009,0.62095237,85944.0,85941.0,0.002]
[1742465388438,0.62095237,85944.0,85941.0,0.35993294]
[1742465388641,0.60270947,85944.0,85941.0,0.35993294]
[1742465388863,0.58627777,85944.0,85941.0,0.35993294]
[1742465389066,0.27464277,85944.0,85943.0,0.48010244]
[1742465389263,0.28627777,85944.0,85943.0,0.48010244]
[1742465389670,0.28627777,85944.0,85943.0,0.62694244]
[1742465389871,0.04193377,85944.0,85943.0,0.62694244]
[1742465390096,0.3,85948.0,85947.0,0.0764]
[1742465390459,0.0116756,85953.0,85948.0,0.0463]
[1742465390646,4.16e-05,85953.0,85950.0,0.0463]
[1742465390850,4.16e-05,85953.0,85952.0,0.134334]
[1742465391496,4.16e-05,85953.0,85952.0,0.1227]
[1742465391917,4.16e-05,85953.0,85952.0,0.12386312]
[1742465392126,4.16e-05,85953.0,85952.0,0.36818512]
[1742465392325,4.16e-05,85953.0,85952.0,0.367022]
[1742465392534,4.16e-05,85953.0,85952.0,0.1227]
[1742465392785,0.0010416,85953.0,85952.0,0.1248631]
[1742465392980,0.0010416,85953.0,85952.0,0.1364971]
[1742465393194,4.16e-05,85953.0,85952.0,0.1238631]
[1742465393389,0.0010416,85953.0,85952.0,0.1258631]
[1742465393978,0.0020416,85953.0,85952.0,0.1268631]
[1742465394376,0.0020416,85953.0,85952.0,1.0669851]
[1742465394593,0.0020416,85953.0,85952.0,1.065822]
[1742465396468,0.0020416,85953.0,85952.0,0.8215]
[1742465398190,0.0020416,85953.0,85952.0,2.3215]
[1742465399154,0.0023808,85953.0,85952.0,2.3215]
[1742465400280,0.244296,85961.0,85959.0,0.31361837]
[1742465400481,0.544296,85961.0,85960.0,0.14696]
[1742465401606,0.3,85961.0,85960.0,0.14696]
[1742465402013,0.301,85961.0,85960.0,0.14912317]
[1742465402473,0.312633,85961.0,85960.0,0.14772]
[1742465403028,0.33423564,85961.0,85960.0,0.14772]
[1742465403237,0.244299,85960.0,85959.0,0.31461837]
[1742465403454,0.544299,85960.0,85959.0,0.31461837]
[1742465403758,0.544299,85960.0,85959.0,0.31361837]
[1742465404138,1.905308,85960.0,85959.0,0.31361837]
[1742465404363,1.71717213,85960.0,85946.0,0.31361837]
[1742465404564,0.544336,85947.0,85946.0,0.31361837]
[1742465405542,0.56593864,85947.0,85946.0,0.31361837]
[1742465405754,0.58418044,85947.0,85946.0,0.31661837]
[1742465406419,0.58418044,85947.0,85946.0,0.31361837]
[1742465406651,0.58418044,85947.0,85946.0,0.31461837]
[1742465407057,0.58418044,85947.0,85946.0,0.31561837]
[1742465410479,0.6187299,85947.0,85946.0,0.31561837]
[1742465411655,0.6187299,85947.0,85946.0,0.31578787]
[1742465423501,2.66303182,85947.0,85946.0,8.7e-07]
[1742465423843,0.6768881,85947.0,85946.0,8.7e-07]
[1742465424593,0.6778881,85947.0,85946.0,8.7e-07]
[1742465425180,0.6788881,85947.0,85946.0,8.7e-07]
[1742465426580,0.69713135,85947.0,85946.0,8.7e-07]
[1742465426996,0.7116722,85947.0,85946.0,8.7e-07]
[1742465427404,0.6555201,85947.0,85946.0,8.7e-07]
[1742465428651,0.54435,85942.0,85941.0,3.7e-07]
[1742465428852,1.149534,85941.0,85940.0,3.7e-07]
[1742465429058,0.32215424,85941.0,85940.0,0.00012528]
[1742465429695,0.32215424,85941.0,85940.0,2.8e-07]
[1742465429900,1.30906524,85941.0,85940.0,2.8e-07]
[1742465430105,0.32215424,85941.0,85940.0,2.8e-07]
[1742465433251,0.32415424,85941.0,85940.0,2.8e-07]
[1742465433713,0.32615424,85941.0,85940.0,2.8e-07]
[1742465433934,0.32815424,85941.0,85940.0,2.8e-07]
[1742465434361,0.40125424,85941.0,85940.0,2.8e-07]
[1742465434801,0.40325424,85941.0,85940.0,2.8e-07]
[1742465435506,0.40325424,85941.0,85940.0,0.00016978]
[1742465435927,3.31702924,85941.0,85940.0,0.00016978]
[1742465437206,0.40325424,85941.0,85940.0,0.00016978]
[1742465437413,3.31025624,85941.0,85940.0,0.00016978]
[1742465438122,3.31025624,85941.0,85940.0,7.8e-07]
[1742465438329,0.40325424,85941.0,85940.0,7.8e-07]
[1742465438521,0.40225424,85941.0,85940.0,7.8e-07]
[1742465438738,0.42050018,85941.0,85940.0,7.8e-07]
[1742465439887,0.43504103,85941.0,85940.0,7.8e-07]
[1742465441032,0.41079509,85941.0,85940.0,7.8e-07]
[1742465441384,0.42079509,85941.0,85940.0,7.8e-07]
[1742465441592,0.40625424,85941.0,85940.0,7.8e-07]
[1742465441793,0.33115424,85941.0,85940.0,7.8e-07]
[1742465442560,0.32615424,85941.0,85940.0,7.8e-07]
[1742465442922,0.33115424,85941.0,85940.0,7.8e-07]
[1742465443767,0.3494002,85941.0,85940.0,7.8e-07]
[1742465448311,0.3497394,85941.0,85940.0,7.8e-07]
[1742465453327,0.36428025,85941.0,85940.0,7.8e-07]
[1742465453914,0.011638,85922.0,85921.0,6e-07]
[1742465454114,0.60474663,85922.0,85921.0,9e-08]
[1742465454295,0.60474663,85922.0,85905.0,0.0001695]
[1742465454296,0.311639,85911.0,85910.0,4.7e-07]
[1742465456342,0.313639,85911.0,85910.0,4.7e-07]
[1742465456547,0.313639,85911.0,85900.0,8.7e-07]
[1742465456548,0.011641,85901.0,85900.0,8.7e-07]
[1742465456759,0.32456447,85901.0,85900.0,8.7e-07]
[1742465457158,0.34281624,85901.0,85900.0,8.7e-07]
[1742465457570,0.34281624,85901.0,85879.0,0.07730987]
[1742465457571,0.544527,85880.0,85879.0,0.07730987]
[1742465457797,0.544527,85880.0,85879.0,0.49220987]
[1742465458004,0.544527,85880.0,85879.0,1.99220987]
[1742465458199,0.544527,85880.0,85879.0,2.16352987]
[1742465458815,0.544527,85880.0,85879.0,2.16357147]
[1742465459063,0.3,85880.0,85879.0,2.16357147]
[1742465459211,0.011642,85890.0,85880.0,0.0462]
[1742465459413,0.3,85886.0,85880.0,0.0462]
[1742465459622,0.3,85884.0,85880.0,0.0462]
[1742465460062,0.311643,85884.0,85883.0,1.5]
[1742465460659,0.311643,85884.0,85883.0,1.5825]
[1742465461133,0.3,85884.0,85883.0,1.5825]
[1742465461343,0.311643,85884.0,85883.0,1.5825]
[1742465461912,0.38245549,85884.0,85883.0,1.9974]
[1742465462530,0.38345549,85884.0,85883.0,2.1688]
[1742465463785,0.38345549,85884.0,85883.0,1.9974]
[1742465463994,0.38345549,85884.0,85883.0,0.66868]
[1742465464190,0.38345549,85884.0,85883.0,0.4974]
[1742465464399,0.544527,85880.0,85879.0,4.16e-05]
[1742465464597,0.55921259,85880.0,85879.0,4.16e-05]
[1742465465632,1.08040724,85880.0,85879.0,4.16e-05]
[1742465465828,1.11543124,85880.0,85879.0,4.16e-05]
[1742465466250,1.11543124,85880.0,85841.0,0.0003588]
[1742465466251,0.532918,85868.0,85841.0,0.0003588]
[1742465466500,0.311648,85845.0,85841.0,0.41530054]
[1742465466741,0.3,85842.0,85841.0,0.07920054]
[1742465467013,0.544635,85842.0,85841.0,0.12820054]
[1742465467860,0.3,85842.0,85841.0,0.12820054]
[1742465468115,0.544635,85842.0,85841.0,1.62820054]
[1742465469138,0.545635,85842.0,85841.0,1.62820054]
[1742465470171,0.546635,85842.0,85841.0,1.62820054]
[1742465470448,0.546635,85842.0,85841.0,1.54940054]
[1742465470722,0.546635,85842.0,85841.0,1.96430054]
[1742465471285,0.546635,85842.0,85841.0,0.46430054]
[1742465471541,0.546635,85842.0,85841.0,1.96430054]
[1742465471969,0.544635,85842.0,85841.0,1.96447024]
[1742465472664,0.544635,85842.0,85841.0,2.13607024]
[1742465472904,0.544635,85842.0,85841.0,2.08707024]
[1742465473143,0.3,85842.0,85841.0,2.08707024]
[1742465473399,0.3215162,85842.0,85841.0,2.08707024]
[1742465474394,0.3,85842.0,85841.0,2.08707024]
[1742465474653,0.544635,85842.0,85841.0,2.08707024]
[1742465474971,0.544635,85842.0,85841.0,2.08735024]
[1742465475167,0.544635,85842.0,85841.0,2.08739024]
[1742465475371,0.232976,85846.0,85841.0,2.08739024]
[1742465475372,0.011647,85856.0,85841.0,1.91547024]
[1742465475577,0.311648,85851.0,85842.0,0.17188]
[1742465475786,0.23298,85845.0,85842.0,0.17188]
[1742465475989,0.011649,85843.0,85842.0,0.17188]
[1742465476192,0.244635,85842.0,85841.0,0.41547024]
[1742465476403,0.244635,85842.0,85841.0,0.58711024]
[1742465476579,0.245635,85842.0,85841.0,0.58703024]
[1742465476817,0.545635,85842.0,85841.0,0.58703024]
[1742465477108,0.544635,85842.0,85841.0,0.58703024]
[1742465477737,0.544635,85842.0,85841.0,0.42711924]
[1742465477738,0.3,85842.0,85841.0,0.42711924]
[1742465477946,0.3,85842.0,85841.0,0.59827924]
[1742465478153,0.3,85842.0,85841.0,1.15287924]
[1742465479000,0.3,85842.0,85841.0,1.15787924]
[1742465479213,0.3,85842.0,85841.0,1.15887924]
[1742465479623,0.3,85842.0,85841.0,1.16487924]
[1742465481479,0.3,85842.0,85841.0,2.66379924]
[1742465481673,0.3,85842.0,85841.0,2.65215024]
[1742465481874,0.311649,85842.0,85841.0,1.15215024]
[1742465482074,0.3,85842.0,85841.0,1.15215024]
[1742465482852,0.3,85842.0,85841.0,1.14015024]
[1742465483258,0.3,85842.0,85841.0,1.14815024]
[1742465483259,0.302,85842.0,85841.0,1.14815024]
[1742465483990,0.302,85842.0,85841.0,0.97807024]
[1742465484186,0.302,85842.0,85841.0,1.14803024]
[1742465484413,0.546635,85842.0,85841.0,1.14803024]
[1742465484612,0.534986,85842.0,85841.0,1.14803024]
[1742465484822,0.302,85842.0,85841.0,1.14803024]
[1742465485036,0.3023396,85842.0,85841.0,1.14803024]
[1742465485242,0.3013396,85842.0,85841.0,1.14403024]
[1742465485439,0.3129886,85842.0,85841.0,0.97407024]
[1742465485806,0.3139886,85842.0,85841.0,0.97807024]
[1742465486014,0.33457345,85842.0,85841.0,0.97407024]
[1742465486216,0.33557345,85842.0,85841.0,0.97807024]
[1742465486625,0.33457345,85842.0,85841.0,0.97407024]
[1742465486825,0.33357345,85842.0,85841.0,0.97007024]
[1742465487026,0.33357345,85842.0,85841.0,0.97407024]
[1742465488098,0.33357345,85842.0,85841.0,0.97807024]
[1742465488847,0.35183505,85842.0,85841.0,0.97807024]
[1742465491314,0.35183505,85842.0,85841.0,0.97007024]
[1742465491733,0.35183505,85842.0,85841.0,0.97407024]
[1742465491937,0.35183505,85842.0,85841.0,0.97707024]
[1742465492772,0.35183505,85842.0,85841.0,0.97307024]
[1742465493165,0.35183505,85842.0,85841.0,0.97607024]
[1742465493728,0.38645179,85842.0,85841.0,0.97307024]
[1742465495074,0.35183505,85842.0,85841.0,0.97607024]
[1742465496517,0.36909794,85842.0,85841.0,0.56117024]
[1742465497170,0.34751309,85842.0,85841.0,0.56117024]
[1742465497413,0.34751309,85842.0,85841.0,0.00657024]
[1742465497613,0.32925149,85842.0,85841.0,0.00657024]
[1742465498160,0.32925149,85842.0,85841.0,0.00357024]
[1742465498562,0.32925149,85842.0,85841.0,0.00657024]
[1742465498767,0.32925149,85842.0,85841.0,0.00357024]
[1742465499023,0.32925149,85842.0,85841.0,0.00657024]
[1742465499194,0.32925149,85842.0,85841.0,0.00357024]
[1742465499528,0.32925149,85842.0,85841.0,0.00057024]
[1742465500372,0.3485151,85842.0,85841.0,0.00057024]
[1742465501391,0.3485151,85842.0,85841.0,2.4e-07]
[1742465501392,2.06308395,85842.0,85841.0,2.4e-07]
[1742465501606,0.648922,85842.0,85841.0,2.4e-07]
[1742465501810,0.647922,85842.0,85841.0,2.4e-07]
[1742465502390,0.651922,85842.0,85841.0,2.4e-07]
[1742465502621,0.650922,85842.0,85841.0,2.4e-07]
[1742465502948,0.01165,85832.0,85831.0,2.4e-07]
[1742465503148,0.70714536,85832.0,85831.0,4.198e-05]
[1742465503351,1.63893336,85832.0,85831.0,4.198e-05]
[1742465503552,1.54975436,85832.0,85831.0,4.198e-05]
[1742465503770,1.12240236,85832.0,85831.0,4.198e-05]
[1742465504170,1.04872436,85832.0,85831.0,4.198e-05]
[1742465504615,1.06699248,85832.0,85831.0,4.198e-05]
[1742465505017,0.72541348,85832.0,85831.0,4.198e-05]
[1742465505631,1.84885248,85832.0,85831.0,4.198e-05]
[1742465506549,1.84985248,85832.0,85831.0,4.198e-05]
[1742465506967,1.55287548,85832.0,85831.0,4.198e-05]
[1742465507171,1.53833463,85832.0,85831.0,4.198e-05]
[1742465507327,0.99549863,85832.0,85831.0,4.198e-05]
[1742465507714,0.99549863,85832.0,85831.0,0.00021148]
[1742465508366,0.56549863,85832.0,85831.0,0.00021148]
[1742465508540,0.28287263,85832.0,85831.0,0.00021148]
[1742465509536,0.26493112,85832.0,85831.0,0.00021148]
[1742465509829,0.002,85832.0,85831.0,0.41511148]
[1742465510032,0.235013,85832.0,85831.0,0.41511148]
[1742465510242,0.246663,85832.0,85831.0,0.41511148]
[1742465510443,0.244663,85832.0,85831.0,0.41511148]
[1742465510861,0.3,85837.0,85831.0,0.41511148]
[1742465511066,0.01165,85835.0,85831.0,0.41511148]
[1742465511276,0.244647,85838.0,85832.0,0.0499]
[1742465511277,0.232997,85838.0,85832.0,0.0499]
[1742465511475,0.3,85835.0,85833.0,0.4149]
[1742465511688,0.544657,85834.0,85833.0,0.4149]
[1742465511891,0.544657,85834.0,85833.0,1.9149]
[1742465512113,0.011648,85847.0,85833.0,2.03447503]
[1742465512315,0.233003,85836.0,85833.0,1.9149]
[1742465512582,0.3,85835.0,85833.0,1.9149]
[1742465512775,0.011649,85844.0,85833.0,2.159558]
[1742465513017,0.3,85847.0,85840.0,0.24464]
[1742465513197,0.011647,85856.0,85841.0,0.094049]
[1742465513429,0.011648,85851.0,85841.0,0.24712]
[1742465513554,0.011648,85848.0,85841.0,0.24712]
[1742465513973,0.011646,85865.0,85855.0,0.011647]
[1742465514172,0.232938,85860.0,85856.0,1.1338004]
[1742465514377,0.3,85857.0,85856.0,1.25337543]
[1742465514583,0.011646,85866.0,85856.0,1.25337543]
[1742465514800,0.011646,85865.0,85859.0,0.0815]
[1742465515002,0.311646,85863.0,85859.0,0.0815]
[1742465515203,0.3,85863.0,85859.0,0.31444]
[1742465515403,0.244569,85866.0,85859.0,0.0815]
[1742465515636,0.232926,85864.0,85860.0,1.5]
[1742465515844,0.244572,85864.0,85860.0,1.5]
[1742465516030,0.01925793,85865.0,85864.0,0.036646]
[1742465516253,0.001,85865.0,85864.0,1.26658143]
[1742465516465,0.001,85865.0,85864.0,0.57078143]
[1742465516631,0.232907,85871.0,85864.0,2.05913543]
[1742465516846,0.3,85869.0,85865.0,0.28333503]
[1742465517047,0.3,85867.0,85865.0,0.28333503]
[1742465517327,0.24456,85868.0,85865.0,0.28333503]
[1742465517529,0.011645,85868.0,85866.0,1.499]
[1742465517785,0.011645,85869.0,85866.0,1.499]
[1742465517965,0.3,85869.0,85866.0,1.499]
[1742465518470,0.3,85869.0,85866.0,1.743566]
[1742465518986,0.3,85869.0,85866.0,1.499]
[1742465519198,0.311645,85870.0,85865.0,0.16376]
[1742465519411,0.001,85867.0,85866.0,0.4145604]
[1742465519977,0.3,85868.0,85866.0,0.4145604]
[1742465520198,0.311645,85868.0,85866.0,0.4155604]
[1742465520411,0.544563,85867.0,85866.0,0.4155604]
[1742465520992,0.544563,85867.0,85866.0,0.5774004]
[1742465521185,0.545563,85867.0,85866.0,0.5794004]
[1742465522352,0.56213004,85867.0,85866.0,0.4165604]
[1742465523070,0.56113004,85867.0,85866.0,0.4145604]
[1742465523500,0.56213004,85867.0,85866.0,0.4165604]
[1742465523711,1.09668704,85867.0,85866.0,0.4165604]
[1742465523921,0.54458,85861.0,85860.0,4.174e-05]
[1742465524120,0.56155396,85861.0,85860.0,4.174e-05]
[1742465524553,1.49487796,85861.0,85860.0,4.174e-05]
[1742465524753,1.02602496,85861.0,85860.0,4.174e-05]
[1742465525564,1.16816581,85861.0,85860.0,4.174e-05]
[1742465525918,1.15362496,85861.0,85860.0,4.174e-05]
[1742465526121,0.56155396,85861.0,85860.0,4.174e-05]
[1742465526511,0.56355396,85861.0,85860.0,4.174e-05]
[1742465527027,0.56155396,85861.0,85860.0,4.174e-05]
[1742465527412,0.56255396,85861.0,85860.0,4.174e-05]
[1742465530096,0.58406103,85861.0,85860.0,4.174e-05]
[1742465531451,0.58406103,85861.0,85860.0,0.00021114]
[1742465535339,0.59860188,85861.0,85860.0,0.00021114]
[1742465535546,1.17593088,85861.0,85860.0,0.00021114]
[1742465535982,0.59860188,85861.0,85860.0,0.00021114]
[1742465536190,0.58406103,85861.0,85860.0,0.00021114]
[1742465536403,0.61852034,85861.0,85860.0,0.00021114]
[1742465536839,0.63678203,85861.0,85860.0,0.00021114]
[1742465537608,2.35198803,85861.0,85860.0,0.00021114]
[1742465537821,2.28563503,85861.0,85860.0,0.00021114]
[1742465538014,2.02040503,85861.0,85860.0,0.00021114]
[1742465538399,1.94218588,85861.0,85860.0,0.00021114]
[1742465538603,1.34953588,85861.0,85860.0,0.00021114]
[1742465538808,1.11093688,85861.0,85860.0,0.00021114]
[1742465539028,1.0549705,85861.0,85860.0,1.4e-07]
[1742465539245,0.5953565,85861.0,85860.0,1.4e-07]
[1742465539681,0.70429481,85861.0,85860.0,1.4e-07]
[1742465540706,0.544626,85845.0,85844.0,0.4145604]
[1742465540915,0.56268535,85845.0,85844.0,0.41465236]
[1742465541316,0.56268535,85845.0,85844.0,9.196e-05]
[1742465541616,0.56268535,85845.0,85832.0,0.4145604]
[1742465541617,0.24466,85833.0,85832.0,0.35551514]
[1742465541824,0.56353365,85833.0,85832.0,0.35564046]
[1742465542028,0.5780745,85833.0,85832.0,0.35564046]
[1742465542434,0.5780745,85833.0,85832.0,3.2e-07]
[1742465542899,0.64876827,85833.0,85832.0,3.2e-07]
[1742465543291,0.66703466,85833.0,85832.0,3.2e-07]
[1742465544196,0.65243953,85833.0,85832.0,3.2e-07]
[1742465544412,0.73263953,85833.0,85832.0,3.2e-07]
[1742465544612,0.31165,85832.0,85831.0,6e-08]
[1742465544789,0.33055759,85832.0,85831.0,6e-08]
[1742465544950,0.34509844,85832.0,85831.0,6e-08]
[1742465545349,0.40119708,85832.0,85831.0,6e-08]
[1742465547392,0.40219708,85832.0,85831.0,6e-08]
[1742465550922,0.43667714,85832.0,85831.0,6e-08]
[1742465551830,0.40219708,85832.0,85831.0,6e-08]
[1742465554547,0.38765623,85832.0,85831.0,6e-08]
[1742465556266,0.38799523,85832.0,85831.0,6e-08]
[1742465557095,0.40253608,85832.0,85831.0,6e-08]
[1742465557254,0.41459296,85832.0,85831.0,6e-08]
[1742465557664,0.43285935,85832.0,85831.0,6e-08]
[1742465559688,0.39833711,85832.0,85831.0,6e-08]
[1742465560323,0.47683711,85832.0,85831.0,6e-08]
[1742465561639,0.39833711,85832.0,85831.0,6e-08]
[1742465561846,0.43287583,85832.0,85831.0,6e-08]
[1742465569532,0.39833711,85832.0,85831.0,6e-08]
[1742465572637,0.43301106,85832.0,85831.0,6e-08]
[1742465574763,0.39833711,85832.0,85831.0,6e-08]
[1742465578549,0.37676071,85832.0,85831.0,6e-08]
[1742465582801,0.37676071,85832.0,85824.0,0.0001696]
[1742465582802,0.621408,85816.0,85815.0,6e-08]
[1742465583037,0.65543338,85816.0,85815.0,6e-08]
[1742465583445,0.66746201,85816.0,85815.0,6e-08]
[1742465583666,0.75211681,85816.0,85815.0,6e-08]
[1742465583888,0.71436201,85816.0,85815.0,6e-08]
[1742465584100,0.71436201,85816.0,85797.0,6.6e-07]
[1742465584101,0.24476,85798.0,85797.0,6.6e-07]
[1742465584319,0.55930085,85798.0,85797.0,6.6e-07]
[1742465584543,0.55930085,85798.0,85797.0,0.00041863]
[1742465584544,0.58055086,85798.0,85797.0,0.00041863]
[1742465584763,1.64489786,85798.0,85797.0,0.00041863]
[1742465584970,1.33099086,85798.0,85797.0,0.00041863]
[1742465585180,0.58055086,85798.0,85797.0,6.3e-07]
[1742465585386,1.77632586,85798.0,85797.0,6.3e-07]
[1742465585589,0.58055086,85798.0,85797.0,6.3e-07]
[1742465585789,0.60222807,85798.0,85797.0,6.3e-07]
[1742465585997,0.62050106,85798.0,85797.0,6.3e-07]
[1742465586212,0.62150106,85798.0,85797.0,6.3e-07]
[1742465586422,0.62150106,85798.0,85785.0,7.7e-07]
[1742465586634,0.62150106,85798.0,85771.0,0.10558273]
[1742465586635,0.544834,85772.0,85771.0,2.3e-07]
[1742465586843,0.544834,85772.0,85771.0,4.18e-05]
[1742465587490,0.61934887,85772.0,85771.0,4.18e-05]
[1742465588518,0.63395352,85772.0,85771.0,4.18e-05]
[1742465590148,0.544843,85769.0,85768.0,1.4984658]
[1742465590953,0.544843,85769.0,85768.0,1.9133658]
[1742465591652,0.03333621,85769.0,85768.0,1.9133658]
[1742465592062,0.33333621,85769.0,85768.0,1.9133658]
[1742465592883,0.33333621,85769.0,85768.0,1.9135353]
[1742465593086,0.02167721,85769.0,85768.0,1.9135353]
[1742465593281,0.26652021,85769.0,85768.0,2.1721753]
[1742465593495,0.26652021,85769.0,85768.0,2.34575033]
[1742465593496,0.02167721,85769.0,85768.0,2.34575033]
[1742465593696,0.02167721,85769.0,85768.0,2.38240933]
[1742465594019,0.02167721,85769.0,85768.0,2.37075033]
[1742465594454,0.006856,85772.0,85771.0,0.03]
[1742465594669,0.006856,85772.0,85771.0,0.27447503]
[1742465595488,0.006856,85772.0,85771.0,0.27347503]
[1742465595696,0.006856,85772.0,85771.0,0.82855503]
[1742465596141,0.55169,85772.0,85771.0,0.67998]
[1742465596347,0.55169,85772.0,85771.0,0.68398]
[1742465596703,0.55169,85772.0,85771.0,1.09888]
[1742465598246,0.55169,85772.0,85771.0,1.27584]
[1742465598679,0.55169,85772.0,85771.0,1.09888]
[1742465598852,0.55169,85772.0,85771.0,1.27564]
[1742465599189,0.56996666,85772.0,85771.0,1.15074]
[1742465599683,0.56996666,85772.0,85771.0,1.14674]
[1742465599916,0.59150812,85772.0,85771.0,1.14674]
[1742465600090,0.59150812,85772.0,85771.0,0.97498]
[1742465602509,0.59150812,85772.0,85771.0,1.05548]
[1742465603496,0.59150812,85772.0,85771.0,1.05048]
[1742465604510,0.59150812,85772.0,85771.0,0.4149]
[1742465604715,0.59150812,85772.0,85768.0,0.0001695]
[1742465604716,0.544843,85769.0,85768.0,5e-07]
[1742465604997,0.5854205,85769.0,85768.0,5e-07]
[1742465605651,0.64144679,85769.0,85768.0,5e-07]
[1742465605858,0.64144679,85769.0,85768.0,0.0020005]
[1742465606055,0.60086929,85769.0,85768.0,0.0020005]
[1742465606461,0.60086929,85769.0,85768.0,5e-07]
[1742465606657,0.60086929,85769.0,85768.0,0.0010005]
[1742465607072,0.61547482,85769.0,85768.0,0.0010005]
[1742465607278,0.31547482,85769.0,85768.0,0.0818005]
[1742465607859,0.33375162,85769.0,85768.0,0.0818005]
[1742465608553,0.28466126,85769.0,85768.0,0.0818005]
[1742465611381,0.28466126,85769.0,85768.0,0.4967005]
[1742465611713,0.27300226,85769.0,85768.0,0.4967005]
[1742465611913,0.28466126,85769.0,85768.0,0.4967005]
[1742465612522,0.28466126,85769.0,85768.0,0.6710605]
[1742465612922,0.28466126,85769.0,85768.0,0.4159005]
[1742465614513,0.26638446,85769.0,85768.0,0.4159005]
[1742465614736,0.26638446,85769.0,85768.0,1.9159005]
[1742465614856,0.56638446,85769.0,85768.0,0.4159005]
[1742465615890,0.601022,85769.0,85768.0,0.4159005]
[1742465616851,0.6013612,85769.0,85768.0,0.4159005]
[1742465617403,0.58500073,85769.0,85768.0,0.4159005]
[1742465618189,0.66640073,85769.0,85768.0,0.4159005]
[1742465618395,0.64180385,85762.0,85761.0,3e-07]
[1742465618592,0.66550014,85762.0,85761.0,0.00012573]
[1742465618935,1.00566564,85762.0,85761.0,0.00012573]
[1742465619290,1.05216929,85762.0,85761.0,0.00012573]
[1742465619526,0.78639023,85762.0,85761.0,0.00012573]
[1742465619732,5.38966129,85762.0,85761.0,0.00212573]
[1742465619929,5.0756587,85762.0,85761.0,0.00212573]
[1742465620103,4.0823137,85762.0,85761.0,0.00012573]
[1742465620311,3.3487337,85762.0,85761.0,0.00012573]
[1742465620851,2.0933522,85762.0,85761.0,0.00012573]
[1742465621055,0.8956112,85762.0,85761.0,0.00012573]
[1742465621673,0.8966112,85762.0,85761.0,0.00012573]
[1742465622187,0.8956112,85762.0,85761.0,0.00012573]
[1742465622393,0.7236912,85762.0,85761.0,0.00012573]
[1742465622711,0.7256912,85762.0,85761.0,0.00012573]
[1742465624234,0.74728532,85762.0,85761.0,0.00012573]
[1742465624444,0.60534447,85762.0,85761.0,0.00012573]
[1742465624845,0.60434447,85762.0,85761.0,0.00012573]
[1742465625056,0.60534447,85762.0,85761.0,0.00012573]
[1742465626093,0.05948147,85762.0,85761.0,0.00012573]
[1742465626294,0.04744518,85762.0,85761.0,0.00012573]
[1742465627064,0.34744518,85762.0,85761.0,0.00012573]
[1742465627468,0.36572497,85762.0,85761.0,0.00012573]
[1742465628266,0.05406497,85762.0,85761.0,0.00012573]
[1742465628473,0.04187391,85762.0,85761.0,0.24516133]
[1742465628673,0.03987391,85762.0,85761.0,0.24516133]